[Event "95th Caplin Hastings Congress"]
[Site "Hastings"]
[Date "2020.01.01"]
[Round "5.39"]
[White "De Coverly, Roger D"]
[Black "Mineev, Sergey I."]
[Result "1-0"]
[ECO "E66"]
[WhiteElo "1986"]
[BlackElo "1588"]
[Annotator "NA RC"]
[PlyCount "94"]
[EventDate "2019.12.28"]
[EventType "swiss"]
[EventCountry "ENG"]
[SourceTitle "playchess.com"]
[Source "ChessBase"]
[SourceQuality "1"]
[TimeControl "40/6600+30:3000+30"]

1. Nf3 {[%emt 0:09:35]} Nf6 {[%emt 0:09:40]} 2. g3 {[%emt 0:00:07]} g6 {[%emt 0:00:04]} 3. Bg2 {[%emt 0:00:14]} Bg7 {[%emt 0:00:05]} 4. O-O {[%emt 0:00:27]} O-O {[%emt 0:00:05]} 5. d4 {[%emt 0:00:20]} d6 {[%emt 0:00:11]} 6. c4 {[%emt 0:00:16]} Nc6 {[%emt 0:00:30]} 7. Nc3 {[%emt 0:00:30]} a6 {[%emt 0:01:37]} 8. d5 {[%emt 0:00:55]} Na5 {[%emt 0:04:32]} 9. Nd2 {[%emt 0:00:12]} c5 {[%emt 0:08:04]} 10. Qc2 {[%emt 0:01:27]} Rb8 {[%emt 0:03:38]} 11. b3 {[%emt 0:01:57]} b5 {[%emt 0:03:12]} 12. Bb2 {[%emt 0:00:17]} Qb6 {[%emt 0:07:27] E66: King's Indian: Fianchetto: 6...c5 7 0-0 Nc6 8 d5} (12... h5 13. Rae1 bxc4 14. bxc4 e5 15. Rb1 h4 16. Ba3 Rxb1 17. Rxb1 hxg3 18. hxg3 Ng4 19. Na4 f5 20. Nb6 e4 {½-½ (38) Ivanchuk,V (2755)-Nakamura,H (2775) Thessaloniki 2013}) 13. Rab1 {[%emt 0:01:52]} Ng4 $146 {[%emt 0:06:58]} ({Predecessor:} 13... e5 14. e4 Nd7 15. Bh3 Qd8 16. Nd1 Qg5 17. Ne3 Qh6 18. Kg2 Nb7 19. Qd3 Nd8 20. Bc1 {1-0 (45) Thynne,T (1927)-Jaufarally,N (1657) Llandudno 2017}) 14. h3 {[%emt 0:03:48]} Ne5 {[%emt 0:04:40]} 15. f4 {[%emt 0:02:03]} bxc4 {[%emt 0:12:33]} 16. Na4 {[%emt 0:05:44]} Qa7 {[%emt 0:06:03]} 17. bxc4 {[%emt 0:04:41]} Rxb2 {[%emt 0:06:18]} 18. Nxb2 {[%emt 0:00:14]} Nd7 {[%emt 0:00:59]} 19. Kh2 {[%emt 0:01:42]} Nf6 {[%emt 0:01:42]} 20. e4 {[%emt 0:02:34]} Nb7 {[%emt 0:02:15]} 21. Nd3 {[%emt 0:01:39]} Nd8 {[%emt 0:01:01]} 22. e5 {[%emt 0:04:13]} Nd7 {[%emt 0:01:07]} 23. Rfe1 {[%emt 0:05:01]} Qc7 {[%emt 0:03:34]} 24. Nf3 {[%emt 0:05:34]} Kh8 {[%emt 0:01:54]} 25. Re2 {[%emt 0:04:57]} Kg8 {[%emt 0:00:39]} 26. Rbe1 {[%emt 0:00:48]} Qb8 {[%emt 0:01:16]} (26... a5) 27. Ng5 {[%emt 0:02:21]} f6 $2 {[%emt 0:01:35]} 28. exd6 {[%emt 0:03:28]} exd6 {[%emt 0:02:21]} 29. Ne6 {[%emt 0:00:39]} Nxe6 $18 {[%emt 0:02:28]} 30. dxe6 {[%emt 0:00:59]} Nb6 {[%emt 0:00:26]} 31. e7 {[%emt 0:02:06]} Re8 {[%emt 0:00:06]} 32. Bc6 {[%emt 0:03:35]} Bd7 {[%emt 0:00:28]} 33. Bxd7 {[%emt 0:00:23]} Nxd7 {[%emt 0:00:10]} 34. Qa4 {[%emt 0:00:15]} Qc8 {[%emt 0:01:13]} 35. Re6 {[%emt 0:05:59]} Kf7 {[%emt 0:02:09]} 36. Rxd6 {[%emt 0:02:01]} Rxe7 {[%emt 0:01:00]} 37. Rxe7+ {[%emt 0:00:23]} Kxe7 {[%emt 0:00:07]} 38. Qxa6 {[%emt 0:00:32]} Qb8 {[%emt 0:01:48]} 39. Re6+ {[%emt 0:04:25]} Kd8 {[%emt 0:00:38]} 40. Qc6 {[%emt 0:01:26]} Qa7 {[%emt 0:00:50]} 41. a4 {[%emt 0:51:50]} Qa5 {[%emt 0:50:27]} 42. Nf2 {[%emt 0:02:50]} Bf8 {[%emt 0:00:48]} 43. Qa6 {[%emt 0:01:20]} Qxa6 {[%emt 0:00:57]} 44. Rxa6 {[%emt 0:00:06]} Kc7 {[%emt 0:00:33]} 45. a5 {[%emt 0:01:54]} Be7 {[%emt 0:01:45]} 46. Re6 {[%emt 0:02:38]} Bd6 {[%emt 0:00:51]} 47. Ne4 {[%emt 0:00:39]} Bf8 {[%emt 0:00:10]} 1-0

[Event "95th Caplin Hastings Congress"]
[Site "Hastings"]
[Date "2020.01.01"]
[Round "5.40"]
[White "Burrows, Nick"]
[Black "Thatte, Nandinee"]
[Result "1-0"]
[ECO "E76"]
[WhiteElo "1952"]
[BlackElo "1270"]
[Annotator "NA RC"]
[PlyCount "105"]
[EventDate "2019.12.28"]
[EventType "swiss"]
[EventCountry "ENG"]
[SourceTitle "playchess.com"]
[Source "ChessBase"]
[SourceQuality "1"]
[TimeControl "40/6600+30:3000+30"]

1. d4 {[%emt 0:09:37]} Nf6 {[%emt 0:09:37]} 2. c4 {[%emt 0:00:08]} g6 {[%emt 0:00:09]} 3. Nc3 {[%emt 0:00:06]} Bg7 {[%emt 0:00:12]} 4. e4 {[%emt 0:00:12]} d6 {[%emt 0:00:14]} 5. f4 {[%emt 0:00:16]} O-O {[%emt 0:02:32]} 6. Nf3 {[%emt 0:00:13]} Nfd7 {[%emt 0:02:36]} 7. Bd3 {[%emt 0:01:58] E76: King's Indian: Four Pawns Attack: Lines specific to 6 Nf3 move-order} c6 {[%emt 0:04:14]} 8. O-O {[%emt 0:01:01]} e5 {[%emt 0:02:06]} 9. fxe5 {[%emt 0:00:29]} dxe5 {[%emt 0:00:28]} 10. d5 {[%emt 0:00:50]} Re8 $146 {[%emt 0:05:05]} ({Predecessor:} 10... f5 11. b3 Nc5 12. Ba3 Nba6 13. Na4 fxe4 14. Nxc5 Qb6 15. Bxe4 Nxc5 16. Bxc5 Qxc5+ {1-0 (40) Poliakov,M (2400)-Bujakevich,A Minsk 1996}) 11. Be3 {[%emt 0:03:56]} Nf6 {[%emt 0:10:39]} 12. Kh1 {[%emt 0:22:43]} Nbd7 {[%emt 0:13:53]} 13. Qe1 {[%emt 0:02:37]} Nh5 {[%emt 0:10:24]} 14. Qf2 {[%emt 0:07:56]} Ndf6 {[%emt 0:10:57]} 15. Bxa7 {[%emt 0:15:16]} Ng4 {[%emt 0:03:06]} 16. Qg1 {[%emt 0:00:10]} Nf4 {[%emt 0:01:33]} 17. Bb6 {[%emt 0:01:59]} Qe7 {[%emt 0:03:18]} 18. Bc5 {[%emt 0:05:31]} Qd8 {[%emt 0:02:10]} 19. Bc2 {[%emt 0:01:03]} Bd7 {[%emt 0:00:42]} 20. Rae1 {[%emt 0:03:46]} Ra6 {[%emt 0:02:50]} 21. dxc6 {[%emt 0:15:30]} Rxc6 {[%emt 0:06:04]} 22. Nd5 {[%emt 0:05:11]} Ne6 {[%emt 0:04:17]} 23. Bb6 {[%emt 0:01:08]} Qc8 {[%emt 0:02:24]} 24. b3 {[%emt 0:02:35]} Nf8 {[%emt 0:01:59]} 25. Bb1 {[%emt 0:02:33]} Nh6 {[%emt 0:03:56]} 26. Be3 {[%emt 0:00:57]} Ng4 {[%emt 0:01:43]} 27. Bc1 {[%emt 0:00:55]} Ra6 {[%emt 0:03:49]} 28. Bb2 {[%emt 0:01:18]} b5 {[%emt 0:02:11]} 29. c5 {[%emt 0:04:04]} Bc6 {[%emt 0:03:10]} 30. b4 {[%emt 0:03:02]} Qb7 {[%emt 0:01:52]} 31. h3 {[%emt 0:00:43]} Nh6 {[%emt 0:00:13]} 32. Nc3 {[%emt 0:03:15]} Rd8 {[%emt 0:00:33]} 33. Qe3 {[%emt 0:00:48]} Ne6 {[%emt 0:00:45]} 34. Ne2 {[%emt 0:01:47]} Qc7 {[%emt 0:00:44]} (34... f6 $16 {was called for.} 35. Rd1 Nf7) 35. Rd1 {[%emt 0:00:36]} Raa8 {[%emt 0:00:10]} 36. a3 {[%emt 0:00:24]} Kh8 {[%emt 0:00:46]} 37. Ng5 {[%emt 0:02:08]} Nxg5 {[%emt 0:01:47]} 38. Qxg5 {[%emt 0:00:01]} Ng8 {[%emt 0:02:21]} 39. Nc3 {[%emt 0:00:42]} Qb7 $2 {[%emt 0:01:26]} (39... h6 40. Qh4 Nf6) 40. Rxd8 {[%emt 0:00:35]} f6 {[%emt 0:00:54]} 41. Qd2 {[%emt 0:50:48]} Rxd8 {[%emt 0:50:49]} 42. Qxd8 {[%emt 0:00:07]} f5 {[%emt 0:00:31]} 43. Nd5 {[%emt 0:00:39]} Bxd5 {[%emt 0:00:00]} 44. Qxd5 {[%emt 0:00:00]} Qe7 {[%emt 0:00:00]} 45. exf5 {[%emt 0:00:00]} gxf5 {[%emt 0:00:00]} 46. Rxf5 {[%emt 0:00:00]} Nh6 {[%emt 0:00:00]} 47. Qa8+ {[%emt 0:00:00]} Bf8 {[%emt 0:00:00]} 48. Rxf8+ {[%emt 0:00:00]} Kg7 {[%emt 0:00:00]} 49. Re8 {[%emt 0:00:00]} Qh4 {[%emt 0:00:00]} 50. Bxe5+ {[%emt 0:00:00]} Kf7 {[%emt 0:00:00]} 51. Rf8+ {[%emt 0:00:00]} Ke6 {[%emt 0:00:00]} 52. Ba2+ {[%emt 0:00:00]} Ke7 {[%emt 0:00:00]} 53. Qe8# {[%emt 0:00:00]} 1-0

[Event "95th Caplin Hastings Congress"]
[Site "Hastings"]
[Date "2020.01.01"]
[Round "5.41"]
[White "Metcalfe, Charlie P"]
[Black "Thorpe, Thomas"]
[Result "0-1"]
[ECO "A40"]
[WhiteElo "1867"]
[BlackElo "1924"]
[Annotator "NA RC"]
[PlyCount "54"]
[EventDate "2019.12.28"]
[EventType "swiss"]
[EventCountry "ENG"]
[SourceTitle "playchess.com"]
[Source "ChessBase"]
[SourceQuality "1"]
[TimeControl "40/6600+30:3000+30"]

1. d4 {[%emt 0:09:53]} g6 {[%emt 0:00:21]} 2. c4 {[%emt 0:00:04]} Bg7 {[%emt 0:09:32]} 3. Nc3 {[%emt 0:01:39]} c5 {[%emt 0:00:16]} 4. d5 {[%emt 0:01:31]} Bxc3+ {[%emt 0:00:40]} 5. bxc3 {[%emt 0:00:01]} f5 {[%emt 0:00:15]} 6. Nf3 {[%emt 0:00:44]} Qa5 {[%emt 0:02:32]} 7. Qc2 {[%emt 0:00:17]} Nf6 {[%emt 0:00:31]} 8. e3 {[%emt 0:00:55] A40: Unusual replies to 1 d4} (8. Bf4 d6 9. Nd2 Nbd7 10. a4 Nb6 11. e3 Bd7 12. Bd3 Nxa4 13. O-O Qxc3 14. Rxa4 Qxc2 15. Bxc2 Bxa4 16. Bxa4+ {0-1 (29) Renman,N (2368)-Solodovnichenko,Y (2559) Sweden 2017}) 8... d6 {[%emt 0:00:27]} 9. Bd3 {[%emt 0:01:17]} Nbd7 {[%emt 0:02:33]} 10. O-O {[%emt 0:09:29]} Nb6 {[%emt 0:06:20]} 11. Re1 {[%emt 0:28:09]} Bd7 {[%emt 0:11:29]} (11... Qa4 $11) 12. e4 {[%emt 0:03:42]} fxe4 {[%emt 0:10:34]} 13. Bxe4 {[%emt 0:00:02]} Nxe4 {[%emt 0:00:48]} 14. Qxe4 {[%emt 0:00:09]} O-O-O {[%emt 0:00:07] [#]} 15. Bf4 $146 {[%emt 0:16:10]} ({But not} 15. Qxe7 $6 Rhe8 $14) ({Predecessor:} 15. Bg5 $1 $16 Rde8 16. Bxe7 Qxc3 17. Rac1 Qb4 18. Qh4 g5 19. Nxg5 Rhg8 20. Ne4 {1-0 (20) Wheeler,J (2235)-Saravanan,V (2385) Torquay 2002}) 15... Rde8 {[%emt 0:08:01]} 16. Bd2 {[%emt 0:13:30]} (16. a4 $11) 16... Qa4 {[%emt 0:06:04]} 17. Qh4 {[%emt 0:05:01]} Qxc4 {[%emt 0:06:39]} 18. Qxc4 {[%emt 0:07:55]} Nxc4 {[%emt 0:00:05]} 19. Bg5 $17 {[%emt 0:00:12]} e6 {[%emt 0:15:40]} 20. dxe6 {[%emt 0:02:14]} Rxe6 {[%emt 0:00:31]} 21. Rxe6 {[%emt 0:00:58]} Bxe6 {[%emt 0:00:02]} 22. Nd2 {[%emt 0:02:50]} Kd7 {[%emt 0:03:36]} 23. Nxc4 {[%emt 0:01:17]} Bxc4 {[%emt 0:00:01]} 24. Re1 {[%emt 0:04:42]} Bxa2 {[%emt 0:02:35]} 25. Ra1 {[%emt 0:00:06]} Bc4 {[%emt 0:00:12]} 26. Rxa7 {[%emt 0:02:08]} Ba6 {[%emt 0:00:07]} 27. c4 {[%emt 0:00:53]} Kc6 {[%emt 0:00:26]} 0-1

[Event "95th Caplin Hastings Congress"]
[Site "Hastings"]
[Date "2020.01.01"]
[Round "5.42"]
[White "Miller, George"]
[Black "Rayner, Francis"]
[Result "1-0"]
[ECO "C00"]
[WhiteElo "1845"]
[BlackElo "2019"]
[Annotator "NA RC"]
[PlyCount "86"]
[EventDate "2019.12.28"]
[EventType "swiss"]
[EventCountry "ENG"]
[SourceTitle "playchess.com"]
[Source "ChessBase"]
[SourceQuality "1"]
[TimeControl "40/6600+30:3000+30"]

1. e4 {[%emt 0:09:45]} c5 {[%emt 0:09:50]} 2. Nf3 {[%emt 0:00:07]} e6 {[%emt 0:00:56]} 3. d3 {[%emt 0:00:09]} Nc6 {[%emt 0:00:33]} 4. g3 {[%emt 0:00:28]} d5 {[%emt 0:02:49]} 5. Nbd2 {[%emt 0:00:10]} Nf6 {[%emt 0:01:52]} 6. Bg2 {[%emt 0:00:17]} Be7 {[%emt 0:00:38]} 7. O-O {[%emt 0:00:10]} Qc7 {[%emt 0:04:07]} 8. Re1 {[%emt 0:00:35]} b6 {[%emt 0:01:48]} 9. a3 {[%emt 0:08:24] C00: French: Unusual White 2nd moves} (9. Qe2 Bb7 10. c3 O-O 11. e5 Nd7 12. Nf1 a5 13. Bf4 a4 14. h4 d4 15. c4 b5 16. cxb5 Nb4 17. a3 Nd5 18. Bg5 Ra5 19. Rac1 Qd8 {½-½ (37) Bruzon Batista,L (2679)-Yilmaz,M (2594) Dubai 2016}) 9... Bb7 {[%emt 0:00:32]} 10. e5 {[%emt 0:05:14]} Nd7 {[%emt 0:00:19]} 11. Qe2 {[%emt 0:00:30]} g5 {[%emt 0:04:51]} 12. g4 {[%emt 0:17:11]} ({White should play} 12. c4 $1 $15 d4 13. Ne4) 12... h5 {[%emt 0:02:01]} 13. h3 {[%emt 0:00:14]} hxg4 {[%emt 0:00:22]} 14. hxg4 {[%emt 0:00:11]} O-O-O {[%emt 0:00:44]} 15. Nf1 {[%emt 0:00:37]} Rdg8 {[%emt 0:02:07]} 16. Ng3 $146 {[%emt 0:00:27] [#]} ({Predecessor:} 16. c3 $17 Nf8 17. b4 Ng6 18. bxc5 bxc5 {0-1 (42) Eymann,H-Beckmann,K (2265) Bad Wiessee 1997}) 16... Nf8 {[%emt 0:07:48]} ({Better is} 16... Rh4 $1 $19 {[%mdl 512]} 17. Nxh4 gxh4) 17. b4 {[%emt 0:11:24]} cxb4 {[%emt 0:04:35]} 18. axb4 {[%emt 0:00:15]} Bxb4 {[%emt 0:00:18]} 19. Bd2 {[%emt 0:00:23]} Bxd2 {[%emt 0:01:03]} 20. Qxd2 {[%emt 0:01:15]} Ng6 {[%emt 0:01:08]} 21. d4 {[%emt 0:06:01]} Nf4 {[%emt 0:03:38]} 22. Bf1 {[%emt 0:01:47]} Kb8 {[%emt 0:01:37]} 23. Re3 {[%emt 0:05:05]} Na5 {[%emt 0:07:01]} 24. Rxa5 {[%emt 0:01:04]} bxa5 {[%emt 0:00:06]} 25. Rc3 {[%emt 0:02:10]} Qe7 {[%emt 0:00:31]} 26. Rb3 {[%emt 0:00:11]} Ka8 {[%emt 0:01:36]} 27. Qxa5 {[%emt 0:00:30]} Nh3+ $2 {[%emt 0:03:27]} ({Black should play} 27... Bc6 $19 28. Ne2 Rb8 29. Rxb8+ Rxb8 30. Nxf4 gxf4) 28. Kg2 {[%emt 0:00:27]} Rc8 {[%emt 0:06:50]} 29. Ra3 {[%emt 0:02:46]} Bc6 {[%emt 0:01:05]} 30. Nd2 {[%emt 0:06:52]} (30. Nh5 $17 {might work better.} Nf4+ 31. Nxf4 gxf4 32. Bd3) 30... Nf4+ {[%emt 0:02:00]} 31. Kg1 {[%emt 0:01:03]} Qc7 $19 {[%emt 0:02:10]} 32. Nb3 {[%emt 0:03:00]} Qxa5 {[%emt 0:00:56]} 33. Rxa5 {[%emt 0:00:12]} Rb8 {[%emt 0:05:01]} 34. Ba6 {[%emt 0:06:13]} Rb6 {[%emt 0:01:47]} 35. Nf1 {[%emt 0:01:35]} Rhb8 {[%emt 0:03:31]} 36. Nfd2 {[%emt 0:01:32]} Nh3+ {[%emt 0:00:52]} 37. Kg2 {[%emt 0:00:34]} Nf4+ {[%emt 0:00:15]} 38. Kg1 {[%emt 0:02:21]} Bb5 {[%emt 0:01:55]} 39. Bxb5 {[%emt 0:02:38]} Rxb5 {[%emt 0:00:01]} 40. Rxb5 {[%emt 0:01:37]} Rxb5 {[%emt 0:00:01]} 41. Nf3 {[%emt 0:50:13]} a5 {[%emt 0:50:35]} 42. Nxg5 {[%emt 0:02:01]} a4 {[%emt 0:00:04]} 43. Nxf7 {[%emt 0:00:07]} Rxb3 {[%emt 0:02:07]} 1-0

[Event "95th Caplin Hastings Congress"]
[Site "Hastings"]
[Date "2020.01.01"]
[Round "5.46"]
[White "Sugden, John N"]
[Black "Brouwer, Willem"]
[Result "1-0"]
[ECO "C43"]
[WhiteElo "2065"]
[BlackElo "1662"]
[Annotator "NA RC"]
[PlyCount "71"]
[EventDate "2019.12.28"]
[EventType "swiss"]
[EventCountry "ENG"]
[SourceTitle "playchess.com"]
[Source "ChessBase"]
[SourceQuality "1"]
[TimeControl "40/6600+30:3000+30"]

1. e4 {[%emt 0:09:46]} e5 {[%emt 0:09:41]} 2. Nf3 {[%emt 0:00:16]} Nf6 {[%emt 0:00:17]} 3. d4 {[%emt 0:00:11]} Nxe4 {[%emt 0:00:33]} 4. Bd3 {[%emt 0:00:29]} d5 {[%emt 0:00:35]} 5. dxe5 {[%emt 0:00:20]} Nc6 {[%emt 0:00:42]} 6. Nbd2 {[%emt 0:01:32] C43: Petroff Defence: 3 d4} Nc5 {[%emt 0:01:23]} 7. O-O $146 {[%emt 0:11:20]} ({Predecessor:} 7. Bb5 Be7 8. O-O Bd7 9. Be2 O-O 10. Re1 Bf5 11. Nf1 f6 12. exf6 Bxf6 13. c3 {1-0 (46) Movsesian,S (2702)-Moskalenko,A (2451) Sochi 2012}) 7... Nxd3 {[%emt 0:05:55]} 8. cxd3 {[%emt 0:00:11]} Be7 {[%emt 0:03:16]} 9. h3 {[%emt 0:16:10]} O-O {[%emt 0:01:52]} 10. d4 {[%emt 0:09:18]} a5 {[%emt 0:05:04]} 11. Re1 {[%emt 0:00:00]} Nb4 {[%emt 0:07:05]} 12. a3 {[%emt 0:08:51]} Nd3 {[%emt 0:04:10]} 13. Re3 {[%emt 0:00:36]} Nxc1 {[%emt 0:05:48]} 14. Rxc1 {[%emt 0:00:19]} a4 {[%emt 0:00:34]} 15. Qc2 {[%emt 0:04:03]} c6 {[%emt 0:00:49]} 16. Nf1 {[%emt 0:01:16]} Bd7 {[%emt 0:02:43]} 17. Ng3 {[%emt 0:04:01]} b6 {[%emt 0:04:06]} 18. Nf5 {[%emt 0:02:06]} Ra5 {[%emt 0:08:56]} 19. Nxe7+ {[%emt 0:01:05]} Qxe7 {[%emt 0:00:09]} 20. Qd2 {[%emt 0:04:13]} Rc8 {[%emt 0:00:55]} 21. Rec3 {[%emt 0:12:56]} c5 {[%emt 0:01:04]} 22. dxc5 {[%emt 0:05:19]} Raxc5 {[%emt 0:00:58]} 23. Rxc5 {[%emt 0:01:15]} Rxc5 {[%emt 0:00:27]} 24. Rxc5 {[%emt 0:00:33]} Qxc5 {[%emt 0:00:13]} 25. Nd4 {[%emt 0:00:38]} h6 {[%emt 0:01:54]} 26. g4 {[%emt 0:01:36]} b5 {[%emt 0:13:24]} 27. Kg2 {[%emt 0:01:06]} Qc7 {[%emt 0:01:18]} 28. f4 {[%emt 0:02:10]} g6 {[%emt 0:04:08]} 29. Qc3 {[%emt 0:07:29]} Qc4 {[%emt 0:12:28]} 30. Qxc4 {[%emt 0:01:03]} bxc4 {[%emt 0:05:51]} 31. Kf3 {[%emt 0:01:53]} Kf8 {[%emt 0:03:52]} 32. Ke3 {[%emt 0:01:49]} Ke8 {[%emt 0:02:30]} 33. Ne2 {[%emt 0:02:02]} Bc6 {[%emt 0:09:02]} 34. Kd4 {[%emt 0:01:31]} Kd7 {[%emt 0:00:27]} 35. f5 {[%emt 0:05:00]} g5 {[%emt 0:01:19]} 36. Nc3 $18 {[%emt 0:01:01]} 1-0

[Event "95th Caplin Hastings Congress"]
[Site "Hastings"]
[Date "2020.01.01"]
[Round "5.47"]
[White "Norinkeviciute, Rasa"]
[Black "Kearsley, Raymond J"]
[Result "1-0"]
[ECO "D01"]
[WhiteElo "2018"]
[BlackElo "1624"]
[Annotator "NA RC"]
[PlyCount "109"]
[EventDate "2019.12.28"]
[EventType "swiss"]
[EventCountry "ENG"]
[SourceTitle "playchess.com"]
[Source "ChessBase"]
[SourceQuality "1"]
[TimeControl "40/6600+30:3000+30"]

1. d4 {[%emt 0:09:43]} d5 {[%emt 0:09:37]} 2. Nc3 {[%emt 0:00:39]} Nf6 {[%emt 0:00:27]} 3. Bg5 {[%emt 0:00:16]} Bf5 {[%emt 0:02:16]} 4. f3 {[%emt 0:03:06]} c6 {[%emt 0:08:36]} 5. Qd2 {[%emt 0:03:40]} Nbd7 {[%emt 0:00:58]} 6. Nh3 {[%emt 0:08:37] D01: Veresov Opening} (6. O-O-O h6 7. Bxf6 Nxf6 8. e4 dxe4 9. Qf4 e6 10. fxe4 Bh7 11. d5 exd5 12. exd5 Bd6 13. Qe3+ Qe7 14. Qxe7+ Kxe7 15. dxc6 bxc6 {0-1 (70) Ulybin,M (2520)-Shishkin,V (2507) Police 2015}) 6... h6 {[%emt 0:05:34]} 7. Bh4 {[%emt 0:05:18]} (7. Bxf6 $11 {keeps the balance.} exf6 8. e4 Bxh3 9. gxh3) 7... Qa5 {[%emt 0:03:07]} 8. Nf2 {[%emt 0:04:58]} e6 {[%emt 0:02:58]} 9. Nd3 $146 {[%emt 0:08:25]} ({Predecessor:} 9. e4 Bh7 10. e5 Ng8 11. Bd3 Bxd3 12. Nxd3 Ne7 {0-1 (53) Mikhailovsky,V (2175)-Ageichenko,G (2264) Moscow 2017}) 9... Be7 {[%emt 0:06:16]} (9... Bxd3 $5 10. cxd3 c5 $15) 10. e3 {[%emt 0:14:47]} Bh7 {[%emt 0:02:53]} 11. Be2 {[%emt 0:01:00]} Ne4 {[%emt 0:10:48]} 12. Nxe4 {[%emt 0:06:45]} Qxd2+ {[%emt 0:00:09]} 13. Nxd2 {[%emt 0:00:05]} Bxh4+ {[%emt 0:00:11]} 14. g3 {[%emt 0:00:25]} Be7 {[%emt 0:00:42]} 15. c3 {[%emt 0:05:45]} O-O {[%emt 0:03:04]} 16. f4 {[%emt 0:01:08]} Rac8 {[%emt 0:01:41]} 17. Kf2 {[%emt 0:04:51]} c5 {[%emt 0:01:48]} 18. Rac1 {[%emt 0:02:45]} c4 {[%emt 0:02:02]} 19. Ne5 {[%emt 0:01:10]} Nxe5 {[%emt 0:12:26]} 20. dxe5 {[%emt 0:01:27]} Rc6 {[%emt 0:02:38]} 21. b4 {[%emt 0:02:46]} cxb3 {[%emt 0:00:28]} 22. axb3 {[%emt 0:00:17]} Rfc8 {[%emt 0:03:06]} 23. c4 {[%emt 0:03:36]} Bb4 {[%emt 0:00:32]} 24. Nf3 {[%emt 0:00:34]} a6 {[%emt 0:03:16]} 25. Nd4 {[%emt 0:01:16]} R6c7 {[%emt 0:00:35]} 26. Ra1 {[%emt 0:02:17]} Bc3 {[%emt 0:06:40]} 27. Ra2 {[%emt 0:01:50]} Bxd4 {[%emt 0:01:16]} 28. exd4 {[%emt 0:00:09]} Be4 {[%emt 0:00:38]} 29. Rha1 {[%emt 0:01:16]} dxc4 {[%emt 0:06:02]} 30. bxc4 {[%emt 0:00:20]} Rd8 {[%emt 0:02:04]} 31. Ke3 {[%emt 0:00:20]} Bc6 {[%emt 0:01:30]} 32. g4 {[%emt 0:01:05]} Rcd7 {[%emt 0:01:06]} 33. Rd2 {[%emt 0:00:48]} Rc7 {[%emt 0:03:18]} 34. Ra5 {[%emt 0:01:25]} Kf8 {[%emt 0:03:41]} 35. f5 {[%emt 0:04:17]} Bd7 {[%emt 0:02:09]} 36. Kf4 {[%emt 0:01:48]} Bc8 {[%emt 0:01:08]} 37. Ra3 {[%emt 0:02:45]} Ke7 {[%emt 0:01:36]} 38. h4 {[%emt 0:01:59]} g6 {[%emt 0:02:23]} 39. f6+ {[%emt 0:09:35]} Ke8 {[%emt 0:02:05]} 40. Rg3 {[%emt 0:03:38]} Rcd7 {[%emt 0:00:35]} 41. Ke4 {[%emt 0:51:06]} b6 {[%emt 0:50:59]} 42. Rb3 {[%emt 0:00:00]} Rb7 {[%emt 0:00:00]} 43. Ke3 {[%emt 0:00:00]} Rb8 {[%emt 0:00:00]} (43... b5 $142 44. Rdb2 (44. cxb5 axb5 45. Rxb5 Ra7 $18) 44... Bd7) 44. Rdb2 {[%emt 0:00:00]} a5 $2 {[%emt 0:00:00]} (44... b5 {keeps fighting.} 45. cxb5 axb5 46. Bxb5+ (46. Rxb5 Rxb5 47. Bxb5+ Bd7 $18) 46... Kf8) 45. Rxb6 {[%emt 0:00:00]} Rxb6 {[%emt 0:00:00]} 46. Rxb6 {[%emt 0:00:00]} a4 {[%emt 0:00:00]} 47. Bd3 {[%emt 0:00:00]} Rd7 {[%emt 0:00:00]} 48. Rb8 {[%emt 0:00:00]} Rd8 {[%emt 0:00:00]} 49. Ra8 {[%emt 0:00:00]} Bd7 {[%emt 0:00:00]} 50. Rxd8+ $2 {[%emt 0:00:00]} (50. Ra7) 50... Kxd8 {[%emt 0:00:00]} 51. g5 {[%emt 0:00:00]} hxg5 {[%emt 0:00:00]} 52. hxg5 {[%emt 0:00:00]} Kc7 {[%emt 0:00:00] [#]} 53. Bxg6 $1 {[%emt 0:00:00] Promotion} a3 {[%emt 0:00:00]} 54. Bb1 {[%emt 0:00:00]} Be8 {[%emt 0:00:00]} 55. Kd3 {[%emt 0:00:00]} 1-0